[Event "2nd Cambridge Open 2024"]
[Site "Cambridge"]
[Date "2024.02.21"]
[Round "4.21"]
[White "Gluma, Christian"]
[Black "Myall, Ivan J"]
[Result "1-0"]
[ECO "C54"]
[WhiteElo "2256"]
[BlackElo "1951"]
[Annotator "TA"]
[PlyCount "115"]
[EventDate "2024.02.18"]
[EventType "swiss"]
[EventCountry "ENG"]
[SourceTitle "playchess.com"]
[Source "ChessBase"]
[SourceQuality "1"]
[TimeControl "5400+30"]

{[%evp 21,115,0,0,-16,0,0,0,-19,-19,-34,0,-36,-33,-35,-7,-42,-4,-19,0,-31,0,-18,6,0,31,3,48,54,45,0,0,0,79,0,0,-204,-187,-280,-272,-316,-210,-657,-340,-740,0,0,0,0,0,-18,0,-17,0,0,42,70,58,60,54,31,67,66,67,27,185,184,191,185,235,224,415,416,429,204,546,551,556,556,556,548,548,548,548,467,504,483,459,0,29980,29981,29981,29982,29982,29983,29983,29984]} 1. e4 {[%emt 0:00:03]} e5 {[%emt 0:00:07]} 2. Nf3 {[%emt 0:00:03]} Nc6 {[%emt 0:00:06]} 3. Bc4 {[%emt 0:00:05]} Bc5 {[%emt 0:00:06]} 4. c3 {[%emt 0:00:04]} Nf6 {[%emt 0:00:10]} 5. d3 {[%emt 0:00:26]} a5 {[%emt 0:00:16]} 6. a4 {[%emt 0:00:52]} d6 {[%emt 0:00:19]} 7. Nbd2 {[%emt 0:00:30]} O-O {[%emt 0:01:00]} 8. O-O {[%emt 0:02:28]} Be6 {[%emt 0:01:36]} 9. Bb3 {[%emt 0:05:32]} Bxb3 {[%emt 0:01:10]} 10. Nxb3 {[%emt 0:04:01]} h6 {[%emt 0:00:31]} 11. Nxc5 {[%emt 0:10:20]} dxc5 {[%emt 0:00:57]} 12. b3 {[%emt 0:02:25]} Re8 {[%emt 0:01:44]} 13. Be3 {[%emt 0:02:10]} Qd6 {[%emt 0:03:18]} 14. Ne1 {[%emt 0:06:33]} Rad8 {[%emt 0:06:40]} 15. Qe2 {[%emt 0:01:05]} Qe6 {[%emt 0:00:52]} 16. Rb1 {[%emt 0:00:31]} b6 {[%emt 0:01:17]} 17. h3 {[%emt 0:04:28]} g5 {[%emt 0:06:10]} 18. Kh2 {[%emt 0:14:13]} Kh7 {[%emt 0:03:24]} 19. g3 {[%emt 0:02:23]} Rg8 {[%emt 0:02:26]} 20. Rh1 {[%emt 0:06:08]} Rg6 {[%emt 0:04:22]} 21. Kg2 {[%emt 0:02:05]} Rdg8 {[%emt 0:06:27]} 22. Nc2 {[%emt 0:04:55]} Ne7 {[%emt 0:06:15]} 23. Na3 {[%emt 0:01:49]} (23. Bd2 $5) 23... R6g7 {[%emt 0:05:20]} 24. h4 {[%emt 0:05:27]} g4 $1 {[%emt 0:02:26]} 25. Nc4 {[%emt 0:02:57]} (25. Bg5 $5) 25... Nh5 {[%emt 0:01:08]} 26. Bd2 {[%emt 0:05:09]} Rg6 {[%emt 0:11:12]} (26... Nc6 $11) 27. Rbe1 {[%emt 0:03:25]} (27. b4 $16 {aiming for bxc5.} axb4 28. cxb4) 27... Rf6 $11 {[%emt 0:03:02]} 28. b4 $2 {[%emt 0:03:55]} (28. Bc1 $11 {and White stays safe.}) 28... cxb4 {[%emt 0:06:12]} 29. d4 {[%emt 0:02:41] [#]} (29. cxb4 $142 axb4 30. Kh2 (30. Bxb4 Ng6 $17)) 29... bxc3 $1 $19 {[%emt 0:02:43]} 30. Bxc3 {[%emt 0:00:54]} Rf3 {[%emt 0:03:22]} 31. Bb2 $2 {[%emt 0:02:52]} (31. d5 Nxd5 32. exd5 Qxd5 33. Qe4+ Qxe4 34. Rxe4 Rxc3 35. Nxe5) 31... exd4 {[%emt 0:01:05]} 32. Nd2 $2 {[%emt 0:00:52]} (32. Bxd4 Rd8 33. Ne5 Rxd4 34. Nxf3 gxf3+ 35. Qxf3) 32... d3 $2 {[%emt 0:04:26]} (32... Ng6 $19 33. Qc4 Nhf4+ 34. Kf1 Nd3) 33. Qd1 $11 {[%emt 0:00:38]} Qa2 {[%emt 0:08:31]} 34. Qa1 {[%emt 0:01:38]} Qe6 $1 {[%emt 0:01:30]} (34... Qxa1 $2 35. Rxa1 c5 (35... Rf6 $2 36. Bxf6 Nxf6 37. Rhc1 $16) 36. Nxf3 gxf3+ 37. Kxf3 $16) 35. Qd1 $1 {[%emt 0:00:25]} (35. Nxf3 $2 gxf3+ 36. Kxf3 Nxg3 $19) 35... Qa2 {[%emt 0:00:09]} (35... Rf6 $5) 36. Nxf3 {[%emt 0:02:20]} (36. Qa1 $5 Qe6 $8 (36... Qxa1 37. Rxa1 Rf6 38. Bxf6 $16) 37. Qd1 $11 (37. Nxf3 $2 gxf3+ 38. Kxf3 Nxg3 $19)) 36... gxf3+ {[%emt 0:00:20]} (36... Qxb2 {feels hotter.} 37. Nd2 Qa2 38. Qc1 c5) 37. Qxf3 {[%emt 0:00:25]} Nxg3 {[%emt 0:01:16]} (37... Ng6 $5 38. Rb1 Nhf4+ 39. Kh2 (39. gxf4 Nxh4+ 40. Kh3 Nxf3 41. f5 f6 42. Rhc1 Qf7) 39... Qe6 $11) 38. fxg3 {[%emt 0:00:18]} Qxb2+ {[%emt 0:00:48]} 39. Kh3 {[%emt 0:00:24]} Qb3 {[%emt 0:03:26]} 40. Rhf1 {[%emt 0:01:10]} Rg7 {[%emt 0:00:42]} 41. Rd1 {[%emt 0:00:54]} Qe6+ $1 {[%emt 0:00:24]} 42. Kh2 {[%emt 0:00:17]} Qa2+ $2 {[%emt 0:00:10]} (42... Nc6 $1 $11 {and Black is okay.} 43. Qxd3 (43. Rxd3 Ne5 $17) 43... Ne5) 43. Rf2 $18 {[%emt 0:00:15]} Qxa4 {[%emt 0:00:50]} 44. Rxd3 {[%emt 0:00:08]} Qc6 {[%emt 0:01:11]} (44... Qb5 {keeps fighting.} 45. Rd8 Ng8) 45. Rd8 $18 {[%emt 0:00:45]} Qg6 $2 {[%emt 0:00:25]} (45... Qc5 46. Rf8 f5) 46. Rf8 $18 {[%emt 0:00:50]} (46. Rd7 Ng8 47. Rxf7 a4 $18) 46... Nc6 {[%emt 0:01:23]} 47. Qf4 {[%emt 0:00:44]} (47. Rxf7 $142 Rxf7 48. Qxf7+ Qxf7 49. Rxf7+ Kg8 50. Rxc7) 47... Nd4 $2 {[%emt 0:01:17]} (47... Qd6 {is tougher.} 48. Qf5+ (48. Rxf7 Qxf4 49. Rxg7+ Kxg7 $18) 48... Qg6 49. Rxf7 Qxf5 50. R7xf5 (50. R2xf5 Nd4 $16) 50... Nd4) 48. Rxf7 $18 {[%emt 0:00:35]} (48. Qxc7 $2 {loses.} Ne6 (48... Qxe4 $2 49. R8xf7 Ne6 50. Qxb6 $18) 49. Qd6 Nxf8 $19) 48... Rxf7 {[%emt 0:01:09]} 49. Qxf7+ {[%emt 0:00:05]} Qxf7 {[%emt 0:00:04]} 50. Rxf7+ {[%emt 0:00:06]} Kg6 {[%emt 0:00:05]} 51. Rxc7 {[%emt 0:00:07]} b5 {[%emt 0:00:20]} 52. Kg2 {[%emt 0:01:16]} a4 {[%emt 0:00:16]} 53. Ra7 {[%emt 0:01:00]} Nc2 {[%emt 0:00:38]} 54. Rc7 $2 {[%emt 0:01:06]} (54. g4 $18) 54... b4 $2 {[%emt 0:01:00][%mdl 8192]} (54... Nd4 $11) 55. Rxc2 {[%emt 0:00:17]} b3 {[%emt 0:00:03]} 56. Rc6+ {[%emt 0:00:15]} Kf7 {[%emt 0:00:28]} 57. Rb6 {[%emt 0:00:06]} (57. Rxh6 b2 58. Rb6 a3 $17) 57... Ke7 {[%emt 0:00:13]} 58. Rb4 {[%emt 0:00:06]} ({Stronger than} 58. Rxh6 a3 $15) 1-0

[Event "2nd Cambridge Open 2024"]
[Site "Cambridge"]
[Date "2024.02.21"]
[Round "4.23"]
[White "Hanache, Kai"]
[Black "Waller, Dan"]
[Result "1-0"]
[ECO "B38"]
[WhiteElo "1926"]
[BlackElo "2126"]
[Annotator "RC"]
[PlyCount "87"]
[EventDate "2024.02.18"]
[EventType "swiss"]
[EventCountry "ENG"]
[SourceTitle "playchess.com"]
[Source "ChessBase"]
[SourceQuality "1"]
[TimeControl "5400+30"]

1. e4 {[%emt 1:31:00]} c5 {[%emt 0:00:00]} 2. Nf3 {[%emt 0:00:00]} g6 {[%emt 0:00:00]} 3. d4 {[%emt 0:00:00]} cxd4 {[%emt 0:00:00]} 4. Nxd4 {[%emt 0:00:00]} Nc6 {[%emt 0:00:00]} 5. c4 {[%emt 0:00:00]} Bg7 {[%emt 0:00:00]} 6. Be3 {[%emt 0:00:00]} Nf6 {[%emt 0:00:03]} 7. Nc3 {[%emt 0:00:00]} O-O {[%emt 0:00:06]} 8. Be2 {[%emt 0:00:00]} d6 {[%emt 0:00:04]} 9. O-O {[%emt 0:00:00]} Bd7 {[%emt 0:00:04]} 10. h3 {[%emt 0:00:00]} Nxd4 {[%emt 0:02:33]} 11. Bxd4 {[%emt 0:00:00]} Bc6 {[%emt 0:00:10]} 12. b4 {[%emt 0:00:00]} e5 {[%emt 0:02:41]} 13. Be3 {[%emt 0:00:00]} Nxe4 {[%emt 0:00:50]} 14. Nxe4 {[%emt 0:00:00]} Bxe4 {[%emt 0:00:04]} 15. Rc1 {[%emt 0:00:00]} b6 {[%emt 0:16:47]} 16. Bf3 {[%emt 0:00:00]} Bxf3 {[%emt 0:01:41]} 17. Qxf3 {[%emt 0:00:00]} Qd7 {[%emt 0:16:03]} 18. Rfd1 {[%emt 0:00:00]} Qa4 {[%emt 0:06:14]} 19. Rxd6 {[%emt 0:00:00]} Qxb4 {[%emt 0:00:25]} 20. Rd7 {[%emt 0:00:00]} Rac8 {[%emt 0:12:30]} 21. Qd5 {[%emt 0:00:00]} Qa4 {[%emt 0:04:05]} 22. c5 {[%emt 0:00:00]} bxc5 {[%emt 0:01:25]} 23. Rxc5 {[%emt 0:00:00]} Rxc5 {[%emt 0:12:56]} 24. Bxc5 {[%emt 0:00:00]} Qf4 {[%emt 0:00:29]} 25. Bxf8 {[%emt 0:00:00]} Bxf8 {[%emt 0:00:24]} 26. g3 {[%emt 0:00:00]} Qf5 {[%emt 0:01:58]} 27. Rxa7 {[%emt 0:00:00]} Kg7 {[%emt 0:00:15]} 28. a4 {[%emt 0:00:00]} Bb4 {[%emt 0:00:32]} 29. Kg2 {[%emt 0:00:00]} Be1 {[%emt 0:03:03]} 30. Qf3 {[%emt 0:00:00]} Qe6 {[%emt 0:00:02]} 31. Qe4 {[%emt 0:00:00]} Bc3 {[%emt 0:02:01]} 32. Rc7 {[%emt 0:00:00]} Bd4 {[%emt 0:00:09]} 33. a5 {[%emt 0:00:00]} Qa2 {[%emt 0:01:45]} 34. Qf3 {[%emt 0:00:00]} Kg8 {[%emt 0:06:39]} 35. a6 {[%emt 0:00:00]} Kg7 {[%emt 0:00:51]} 36. Re7 {[%emt 0:00:00]} h5 {[%emt 0:01:38]} 37. g4 {[%emt 0:00:00]} hxg4 {[%emt 0:00:05]} 38. hxg4 {[%emt 0:00:00]} Qxa6 {[%emt 0:03:55]} 39. Rxf7+ {[%emt 0:00:00]} Kg8 {[%emt 0:00:36]} 40. Rd7 {[%emt 0:00:00]} Qa2 {[%emt 0:00:59]} 41. Qf6 {[%emt 0:00:00]} Qa8+ {[%emt 0:02:33]} 42. Kh2 {[%emt 0:00:00]} Qf8 {[%emt 0:00:53]} 43. Qxg6+ {[%emt 0:00:00]} Kh8 {[%emt 0:00:05]} 44. Rh7# {[%emt 0:00:00]} 1-0

[Event "2nd Cambridge Open 2024"]
[Site "Cambridge"]
[Date "2024.02.21"]
[Round "4.24"]
[White "McLean, Robert"]
[Black "Southcott-Moyers, Indy"]
[Result "1/2-1/2"]
[ECO "B12"]
[WhiteElo "1823"]
[BlackElo "2123"]
[Annotator "RC"]
[PlyCount "64"]
[EventDate "2024.02.18"]
[EventType "swiss"]
[EventCountry "ENG"]
[SourceTitle "playchess.com"]
[Source "ChessBase"]
[SourceQuality "1"]
[TimeControl "5400+30"]

1. e4 {[%emt 0:00:01]} c6 {[%emt 0:00:07]} 2. d4 {[%emt 0:00:32]} d5 {[%emt 0:00:06]} 3. e5 {[%emt 0:00:11]} c5 {[%emt 0:00:49]} 4. c3 {[%emt 0:00:18]} Nc6 {[%emt 0:01:05]} 5. Be2 {[%emt 0:00:19]} cxd4 {[%emt 0:01:15]} 6. cxd4 {[%emt 0:00:04]} Bf5 {[%emt 0:00:15]} 7. Nf3 {[%emt 0:01:01]} e6 {[%emt 0:02:11]} 8. O-O {[%emt 0:00:27]} Nge7 {[%emt 0:01:02]} 9. Nc3 {[%emt 0:01:48]} Bg4 {[%emt 0:00:45]} 10. Be3 {[%emt 0:02:14]} Nf5 {[%emt 0:01:41]} 11. Qd2 {[%emt 0:02:58]} Be7 {[%emt 0:01:23]} 12. h3 {[%emt 0:01:24]} Bxf3 {[%emt 0:05:46]} 13. Bxf3 {[%emt 0:00:05]} Qb6 {[%emt 0:08:21]} 14. Bg4 {[%emt 0:05:53]} Nh4 {[%emt 0:12:22]} 15. Be2 {[%emt 0:04:28]} O-O {[%emt 0:07:07]} 16. Bd3 {[%emt 0:04:46]} Ng6 {[%emt 0:02:20]} 17. f4 {[%emt 0:03:04]} f5 {[%emt 0:00:25]} 18. Na4 {[%emt 0:13:48]} Qb4 {[%emt 0:01:25]} 19. Qxb4 {[%emt 0:00:26]} Nxb4 {[%emt 0:00:12]} 20. Bb1 {[%emt 0:00:56]} Rac8 {[%emt 0:05:17]} 21. a3 {[%emt 0:04:26]} Nc2 {[%emt 0:06:05]} 22. Bxc2 {[%emt 0:00:05]} Rxc2 {[%emt 0:00:05]} 23. Rac1 {[%emt 0:00:24]} Rfc8 {[%emt 0:01:41]} 24. Nc5 {[%emt 0:12:53]} Rxb2 {[%emt 0:10:38]} 25. Nxe6 {[%emt 0:00:19]} Rcc2 {[%emt 0:01:42]} 26. Rxc2 {[%emt 0:00:49]} Rxc2 {[%emt 0:02:27]} 27. Rc1 {[%emt 0:00:41]} Rc6 {[%emt 0:00:20]} 28. Rxc6 {[%emt 0:00:49]} bxc6 {[%emt 0:00:24]} 29. a4 {[%emt 0:01:08]} Kf7 {[%emt 0:05:01]} 30. Nc7 {[%emt 0:00:41]} Bd8 {[%emt 0:03:52]} 31. Na6 {[%emt 0:00:14]} Ne7 {[%emt 0:01:20]} 32. Nc5 {[%emt 0:02:24]} Bb6 {[%emt 0:00:48]} 1/2-1/2

[Event "2nd Cambridge Open 2024"]
[Site "Cambridge"]
[Date "2024.02.21"]
[Round "4.25"]
[White "Simpson, Ben"]
[Black "Borsos, Bogdan"]
[Result "0-1"]
[ECO "C41"]
[WhiteElo "1873"]
[BlackElo "2094"]
[Annotator "RC"]
[PlyCount "56"]
[EventDate "2024.02.18"]
[EventType "swiss"]
[EventCountry "ENG"]
[SourceTitle "playchess.com"]
[Source "ChessBase"]
[SourceQuality "1"]
[TimeControl "5400+30"]

1. d4 {[%emt 0:00:04]} d6 {[%emt 0:00:27]} 2. e4 {[%emt 0:00:24]} Nf6 {[%emt 0:00:09]} 3. Nc3 {[%emt 0:00:04]} e5 {[%emt 0:00:09]} 4. Nf3 {[%emt 0:00:10]} Nbd7 {[%emt 0:00:25]} 5. Bc4 {[%emt 0:00:29]} Be7 {[%emt 0:00:27]} 6. O-O {[%emt 0:00:08]} O-O {[%emt 0:00:20]} 7. Re1 {[%emt 0:01:05]} a6 {[%emt 0:07:15]} 8. a4 {[%emt 0:01:57]} b6 {[%emt 1:25:18]} 9. Nd5 {[%emt 0:11:10]} Bb7 {[%emt 0:00:00]} 10. Nxe7+ {[%emt 0:00:46]} Qxe7 {[%emt 0:00:00]} 11. Bg5 {[%emt 0:23:01]} h6 {[%emt 0:00:00]} 12. Bh4 {[%emt 0:01:34]} Rfe8 {[%emt 0:00:00]} 13. Ra3 {[%emt 0:04:45]} Nf8 {[%emt 0:00:00]} 14. a5 {[%emt 0:05:54]} b5 {[%emt 0:00:00]} 15. Bd5 {[%emt 0:05:08]} c6 {[%emt 0:00:00]} 16. Ba2 {[%emt 0:02:31]} Ng6 {[%emt 0:00:00]} 17. Bg3 {[%emt 0:03:30]} c5 {[%emt 0:00:00]} 18. dxc5 {[%emt 0:05:26]} dxc5 {[%emt 0:00:00]} 19. Bd5 {[%emt 0:07:11]} Rad8 {[%emt 0:00:00]} 20. Rd3 {[%emt 0:00:12]} c4 {[%emt 0:00:00]} 21. Rd2 {[%emt 0:01:05]} Nxd5 {[%emt 0:00:00]} 22. exd5 {[%emt 0:00:07]} f6 {[%emt 0:00:00]} 23. Nd4 {[%emt 0:06:04]} Rxd5 {[%emt 0:00:00]} 24. Qg4 {[%emt 0:06:58]} Qf7 {[%emt 0:00:00]} 25. Nf5 {[%emt 0:01:04]} Rxd2 {[%emt 0:00:00]} 26. h4 {[%emt 0:00:17]} Kh7 {[%emt 0:00:00]} 27. h5 {[%emt 0:00:11]} Ne7 {[%emt 0:00:00]} 28. Nh4 {[%emt 0:03:52]} Rd4 {[%emt 0:00:00]} 0-1

[Event "2nd Cambridge Open 2024"]
[Site "Cambridge"]
[Date "2024.02.21"]
[Round "4.26"]
[White "Bharat Kumar, Balahari"]
[Black "Samarakoon, Vivash Ransara"]
[Result "1-0"]
[ECO "A52"]
[WhiteElo "1995"]
[BlackElo "1839"]
[Annotator "NA RC"]
[PlyCount "103"]
[EventDate "2024.02.18"]
[EventType "swiss"]
[EventCountry "ENG"]
[SourceTitle "playchess.com"]
[Source "ChessBase"]
[SourceQuality "1"]
[TimeControl "5400+30"]

1. d4 {[%emt 0:00:04]} Nf6 {[%emt 0:00:25]} 2. c4 {[%emt 0:00:10]} e5 {[%emt 0:00:12]} 3. dxe5 {[%emt 0:00:15]} Ng4 {[%emt 0:00:04]} 4. Bf4 {[%emt 0:00:32]} Nc6 {[%emt 0:00:10]} 5. Nf3 {[%emt 0:00:16]} Bb4+ {[%emt 0:00:06]} 6. Nbd2 {[%emt 0:00:27]} Qe7 {[%emt 0:01:26]} 7. e3 {[%emt 0:00:14]} Ngxe5 {[%emt 0:01:24]} 8. Nxe5 {[%emt 0:01:01]} Nxe5 {[%emt 0:00:19]} 9. Be2 {[%emt 0:00:29]} O-O {[%emt 0:06:21]} 10. a3 {[%emt 0:01:10]} Bxd2+ {[%emt 0:00:18]} 11. Qxd2 {[%emt 0:00:10]} d6 {[%emt 0:00:59]} 12. O-O {[%emt 0:01:41]} b6 {[%emt 0:05:40]} 13. b4 {[%emt 0:20:23]} Bb7 {[%emt 0:21:03]} 14. Qd4 $11 {[%emt 0:11:59]} Ng6 {[%emt 0:10:52]} 15. Bg3 {[%emt 0:03:00]} Rad8 {[%emt 0:05:25]} 16. Rfd1 {[%emt 0:13:22]} f5 {[%emt 0:10:24]} 17. Ra2 {[%emt 0:18:33]} Qg5 {[%emt 0:11:56]} 18. f4 {[%emt 0:08:09]} Qe7 {[%emt 0:02:12]} 19. Bf3 {[%emt 0:06:41]} Bxf3 {[%emt 0:06:56]} 20. gxf3 {[%emt 0:00:02]} c6 {[%emt 0:01:24]} 21. Rg2 {[%emt 0:01:03]} Rd7 {[%emt 0:02:19]} 22. Qc3 {[%emt 0:02:04]} Rfd8 {[%emt 0:02:02]} 23. Be1 {[%emt 0:05:05]} Re8 {[%emt 0:00:43]} 24. Bf2 {[%emt 0:00:22]} Red8 {[%emt 0:01:10]} 25. Rg5 {[%emt 0:01:16]} Qe6 {[%emt 0:01:07]} 26. Qd3 {[%emt 0:02:14]} d5 {[%emt 0:01:41]} 27. c5 {[%emt 0:02:16]} bxc5 {[%emt 0:00:05]} 28. Qxf5 {[%emt 0:00:44]} Qxf5 {[%emt 0:00:09]} 29. Rxf5 {[%emt 0:00:02]} cxb4 {[%emt 0:00:23]} 30. axb4 {[%emt 0:00:18]} Rb8 {[%emt 0:00:37]} 31. Be1 {[%emt 0:00:14]} Re7 {[%emt 0:00:34]} 32. Kf2 {[%emt 0:00:43]} Rbe8 {[%emt 0:01:02]} 33. Rd3 {[%emt 0:00:21]} d4 {[%emt 0:00:25]} 34. e4 {[%emt 0:00:19]} Rd7 {[%emt 0:01:30]} 35. Kg3 {[%emt 0:01:01]} Ne7 {[%emt 0:01:17]} 36. Rc5 {[%emt 0:00:17]} Rd6 {[%emt 0:00:17]} 37. Bd2 {[%emt 0:00:49]} Red8 {[%emt 0:00:41]} 38. f5 {[%emt 0:00:36]} g6 {[%emt 0:02:28]} 39. Bg5 {[%emt 0:00:09]} Re8 {[%emt 0:00:53]} 40. Bxe7 {[%emt 0:01:16]} Rxe7 {[%emt 0:00:03]} 41. e5 {[%emt 0:00:28]} Rdd7 {[%emt 0:00:48]} 42. f6 {[%emt 0:00:11]} Re6 {[%emt 0:00:11]} 43. f4 {[%emt 0:00:19]} Kf7 {[%emt 0:02:29]} 44. h4 {[%emt 0:00:14]} Ke8 {[%emt 0:01:01]} 45. Rc4 {[%emt 0:00:28]} c5 {[%emt 0:00:24]} 46. Rxc5 {[%emt 0:00:26]} Ra6 {[%emt 0:00:06]} 47. Rc4 {[%emt 0:00:38]} Ra1 {[%emt 0:00:49]} 48. e6 {[%emt 0:01:14]} Rd8 {[%emt 0:00:19]} 49. Rcxd4 {[%emt 0:00:42]} Rxd4 {[%emt 0:01:06]} 50. Rxd4 {[%emt 0:00:01]} Ra6 {[%emt 0:00:07]} 51. f7+ {[%emt 0:00:17]} Ke7 {[%emt 0:00:16]} 52. Rd8 {[%emt 0:00:43]} 1-0

[Event "2nd Cambridge Open 2024"]
[Site "Cambridge"]
[Date "2024.02.21"]
[Round "4.27"]
[White "Zhang, Junyi"]
[Black "Payne, Matthew J"]
[Result "1/2-1/2"]
[ECO "C07"]
[WhiteElo "1655"]
[BlackElo "2091"]
[Annotator "NA RC"]
[PlyCount "95"]
[EventDate "2024.02.18"]
[EventType "swiss"]
[EventCountry "ENG"]
[SourceTitle "playchess.com"]
[Source "ChessBase"]
[SourceQuality "1"]
[TimeControl "5400+30"]

1. e4 {[%emt 0:02:11]} e6 {[%emt 0:00:07]} 2. d4 {[%emt 0:00:23]} d5 {[%emt 0:00:06]} 3. Nd2 {[%emt 0:00:24]} c5 {[%emt 0:00:06]} 4. exd5 {[%emt 0:00:30]} Qxd5 {[%emt 0:00:08]} 5. Ngf3 {[%emt 0:00:21]} cxd4 {[%emt 0:00:06]} 6. Bc4 {[%emt 0:01:07]} Qd6 {[%emt 0:00:07]} 7. O-O {[%emt 0:00:54]} Nf6 {[%emt 0:00:24]} 8. Nb3 {[%emt 0:01:00]} Nc6 {[%emt 0:00:09]} 9. Nbxd4 {[%emt 0:00:11]} Nxd4 {[%emt 0:00:09]} 10. Qxd4 {[%emt 0:00:04]} Qxd4 {[%emt 0:02:21]} 11. Nxd4 {[%emt 0:01:06]} Bd7 {[%emt 0:00:11]} 12. Be2 {[%emt 0:02:57]} Bc5 {[%emt 0:06:46]} 13. Rd1 {[%emt 0:04:07]} O-O-O {[%emt 0:05:11]} 14. Bf3 {[%emt 0:07:17]} e5 {[%emt 0:06:52]} 15. Nb3 {[%emt 0:03:30]} Bb6 {[%emt 0:00:17]} 16. Be3 {[%emt 0:03:27]} Bxe3 {[%emt 0:11:11]} 17. fxe3 {[%emt 0:00:25]} b6 {[%emt 0:00:08]} 18. Nd2 {[%emt 0:10:24]} Be6 $11 {[%emt 0:03:54]} 19. Kf2 {[%emt 0:11:17]} g5 {[%emt 0:13:55]} 20. h3 {[%emt 0:11:00]} h5 {[%emt 0:00:24]} 21. Ne4 {[%emt 0:00:38]} Nxe4+ {[%emt 0:00:48]} 22. Bxe4 {[%emt 0:00:05]} f5 {[%emt 0:00:10]} 23. Bd3 {[%emt 0:00:31]} g4 {[%emt 0:02:14]} 24. hxg4 {[%emt 0:11:19]} fxg4 {[%emt 0:00:42]} 25. Be4 {[%emt 0:07:37]} h4 {[%emt 0:01:17]} 26. Rxd8+ {[%emt 0:00:48]} Rxd8 {[%emt 0:00:07]} 27. Rh1 {[%emt 0:00:31]} g3+ {[%emt 0:00:47]} 28. Ke2 {[%emt 0:20:26]} Rh8 {[%emt 0:07:47]} 29. b3 {[%emt 0:00:00]} Kd7 {[%emt 0:02:29]} 30. Rf1 {[%emt 0:00:00]} Ke7 {[%emt 0:00:23]} 31. c4 {[%emt 0:00:00]} a5 {[%emt 0:03:05]} 32. a4 {[%emt 0:00:00]} Rh6 {[%emt 0:03:18]} 33. Ke1 {[%emt 0:00:00]} Bg4 {[%emt 0:04:37]} 34. Bf5 {[%emt 0:00:00]} Bh5 {[%emt 0:01:56]} 35. Be4 {[%emt 0:00:00]} Kd6 {[%emt 0:01:59]} 36. Kd2 {[%emt 0:01:24]} Bg4 {[%emt 0:00:47]} 37. Rh1 {[%emt 0:01:29]} Kc5 {[%emt 0:00:35]} 38. Kc3 {[%emt 0:00:58]} h3 {[%emt 0:00:30]} 39. gxh3 {[%emt 0:00:13]} Rxh3 {[%emt 0:00:06]} 40. Rg1 {[%emt 0:00:44]} Bd7 {[%emt 0:03:02]} 41. Rg2 {[%emt 0:00:42]} Bc6 {[%emt 0:00:32]} 42. Bxc6 {[%emt 0:00:48]} Kxc6 {[%emt 0:00:01]} 43. b4 {[%emt 0:00:17]} Kd6 {[%emt 0:00:32]} 44. e4 {[%emt 0:00:15]} Kc6 {[%emt 0:00:38]} 45. Kb3 {[%emt 0:00:08]} Kd6 {[%emt 0:01:26]} 46. Kc3 {[%emt 0:00:05]} axb4+ {[%emt 0:00:04]} 47. Kxb4 {[%emt 0:00:14]} Kc6 {[%emt 0:00:04]} 48. Rg1 {[%emt 0:00:39]} 1/2-1/2

[Event "2nd Cambridge Open 2024"]
[Site "Cambridge"]
[Date "2024.02.21"]
[Round "4.28"]
[White "Evans, Ruben"]
[Black "Asgarova, Turan"]
[Result "1/2-1/2"]
[ECO "A69"]
[WhiteElo "1647"]
[BlackElo "1988"]
[Annotator "NA RC"]
[PlyCount "55"]
[EventDate "2024.02.18"]
[EventType "swiss"]
[EventCountry "ENG"]
[SourceTitle "playchess.com"]
[Source "ChessBase"]
[SourceQuality "1"]
[TimeControl "5400+30"]

1. d4 {[%emt 0:00:02]} Nf6 {[%emt 0:00:19]} 2. c4 {[%emt 0:00:02]} g6 {[%emt 0:00:12]} 3. Nc3 {[%emt 0:00:04]} Bg7 {[%emt 0:00:08]} 4. e4 {[%emt 0:00:02]} d6 {[%emt 0:00:25]} 5. f4 {[%emt 0:00:16]} O-O {[%emt 0:01:02]} 6. Nf3 {[%emt 0:00:12]} c5 {[%emt 0:02:03]} 7. d5 {[%emt 0:00:20]} e6 {[%emt 0:02:33]} 8. Be2 {[%emt 0:00:16]} exd5 {[%emt 0:03:23]} 9. cxd5 {[%emt 0:00:18]} Re8 {[%emt 0:01:40]} 10. e5 {[%emt 0:00:09]} dxe5 {[%emt 0:04:25]} 11. fxe5 {[%emt 0:00:31]} Ng4 {[%emt 0:01:08]} 12. e6 {[%emt 0:00:38]} fxe6 {[%emt 0:03:09]} 13. d6 {[%emt 0:00:08]} a6 {[%emt 0:05:20]} 14. O-O {[%emt 0:00:50]} Bd7 {[%emt 0:16:24]} 15. Ne4 {[%emt 0:18:03]} Bc6 $11 {[%emt 0:10:14]} 16. Nfg5 {[%emt 0:09:33]} Nh6 {[%emt 0:11:44]} 17. Bc4 {[%emt 0:15:51]} Bxe4 {[%emt 0:02:52]} 18. Nxe4 {[%emt 0:01:52]} Nf5 {[%emt 0:01:37]} 19. Bg5 {[%emt 0:12:36]} Bd4+ {[%emt 0:03:29]} 20. Kh1 {[%emt 0:00:42]} Qb6 {[%emt 0:02:59]} 21. Qe2 {[%emt 0:25:39]} Nd7 {[%emt 0:02:37]} 22. Be7 {[%emt 0:03:37]} Nf8 {[%emt 0:08:44]} 23. Rxf5 {[%emt 0:08:04]} gxf5 {[%emt 0:01:46]} 24. Ng5 {[%emt 0:00:56]} Qxb2 {[%emt 0:05:12]} 25. Qxb2 {[%emt 0:00:36]} Bxb2 {[%emt 0:00:06]} 26. Rb1 {[%emt 0:00:11]} Bd4 {[%emt 0:02:46]} 27. Bxf8 {[%emt 0:01:13]} b5 {[%emt 0:04:23]} 28. Bxe6+ {[%emt 0:01:12]} 1/2-1/2

[Event "2nd Cambridge Open 2024"]
[Site "Cambridge"]
[Date "2024.02.21"]
[Round "4.29"]
[White "Volovich, Julia"]
[Black "Jefremov, Aivar"]
[Result "1/2-1/2"]
[ECO "E32"]
[WhiteElo "1983"]
[BlackElo "1656"]
[Annotator "RC"]
[PlyCount "63"]
[EventDate "2024.02.18"]
[EventType "swiss"]
[EventCountry "ENG"]
[SourceTitle "playchess.com"]
[Source "ChessBase"]
[SourceQuality "1"]
[TimeControl "5400+30"]

1. d4 {[%emt 0:01:01]} e6 {[%emt 0:00:14]} 2. c4 {[%emt 0:00:17]} Nf6 {[%emt 0:00:19]} 3. Nc3 {[%emt 0:00:10]} Bb4 {[%emt 0:00:12]} 4. Qc2 {[%emt 0:00:08]} O-O {[%emt 0:00:19]} 5. a3 {[%emt 0:00:09]} Bxc3+ {[%emt 0:00:07]} 6. Qxc3 {[%emt 0:00:07]} b6 {[%emt 0:00:26]} 7. Bg5 {[%emt 0:00:08]} Bb7 {[%emt 0:00:54]} 8. f3 {[%emt 0:00:10]} h6 {[%emt 0:01:35]} 9. Bh4 {[%emt 0:00:15]} c5 {[%emt 0:02:11]} 10. dxc5 {[%emt 0:02:19]} bxc5 {[%emt 0:00:15]} 11. Rd1 {[%emt 0:01:32]} Ne4 {[%emt 0:02:45]} 12. Qxg7+ {[%emt 0:09:24]} Kxg7 {[%emt 0:00:07]} 13. Bxd8 {[%emt 0:00:05]} Rxd8 {[%emt 0:00:28]} 14. fxe4 {[%emt 0:00:06]} Bxe4 {[%emt 0:00:30]} 15. Nf3 {[%emt 0:02:13]} Nc6 {[%emt 0:02:33]} 16. e3 {[%emt 0:12:34]} Rab8 {[%emt 0:01:54]} 17. Bd3 {[%emt 0:03:37]} Bxd3 {[%emt 0:02:32]} 18. Rxd3 {[%emt 0:00:06]} Rxb2 {[%emt 0:00:32]} 19. O-O {[%emt 0:01:29]} Rc2 {[%emt 0:03:30]} 20. Rfd1 {[%emt 0:01:17]} Rxc4 {[%emt 0:02:41]} 21. Rxd7 {[%emt 0:02:03]} Rxd7 {[%emt 0:00:07]} 22. Rxd7 {[%emt 0:00:04]} Kf6 {[%emt 0:12:51]} 23. Rc7 {[%emt 0:06:19]} Na5 {[%emt 0:01:30]} 24. Rxa7 {[%emt 0:05:08]} Ra4 {[%emt 0:04:06]} 25. Nd2 {[%emt 0:03:46]} Rxa3 {[%emt 0:02:12]} 26. Ne4+ {[%emt 0:02:51]} Kg6 {[%emt 0:15:36]} 27. Nxc5 {[%emt 0:00:23]} Nc4 {[%emt 0:00:25]} 28. Rxa3 {[%emt 0:00:06]} Nxa3 {[%emt 0:00:04]} 29. Kf2 {[%emt 0:00:22]} Nc4 {[%emt 0:00:45]} 30. Kf3 {[%emt 0:01:56]} Nd6 {[%emt 0:04:58]} 31. Kf4 {[%emt 0:02:32]} Nc4 {[%emt 0:01:45]} 32. Ke4 {[%emt 0:08:17]} 1/2-1/2